fUST/lending_fUST_20250727
["ID","MTS","AMOUNT","RATE_DAILY","PERIOD"]
[375236568,1753594241851,-460.0,0.00019726,2]
[375236571,1753594241862,-377.07,0.00019726,2]
[375236572,1753594241872,-460.0,0.00019726,2]
[375236574,1753594241882,-460.0,0.00019726,2]
[375236576,1753594241891,-867.34,0.00019726,2]
[375236578,1753594241900,-460.0,0.00019726,2]
[375236580,1753594241909,-460.0,0.00019726,2]
[375236582,1753594241919,-460.0,0.00019726,2]
[375236584,1753594241928,-421.70849398,0.00019726,2]
[375236586,1753594241938,-460.0,0.00019726,2]
[375236588,1753594241948,-680.18,0.00019726,2]
[375236590,1753594241957,-460.0,0.00019726,2]
[375236592,1753594241966,-460.0,0.00019726,2]
[375236594,1753594241976,-460.0,0.00019726,2]
[375236596,1753594241986,-460.0,0.00019726,2]
[375236598,1753594241995,-460.0,0.00019726,2]
[375236600,1753594242005,-460.0,0.00019726,2]
[375236602,1753594242014,-460.0,0.00019726,2]
[375236604,1753594242023,-460.0,0.00019726,2]
[375236606,1753594242032,-460.0,0.00019726,2]
[375236608,1753594242042,-460.0,0.00019726,2]
[375236610,1753594242051,-460.0,0.00019726,2]
[375236612,1753594242060,-460.0,0.00019726,2]
[375236625,1753594242177,-460.0,0.00019726,2]
[375236627,1753594242188,-710.38,0.00019726,2]
[375236629,1753594242197,-460.0,0.00019726,2]
[375236631,1753594242207,-460.0,0.00019726,2]
[375236633,1753594242218,-909.34,0.00019726,2]
[375236635,1753594242227,-988.4,0.00019726,2]
[375236637,1753594242238,-460.0,0.00019726,2]
[375236639,1753594242250,-460.0,0.00019726,2]
[375236641,1753594242260,-460.0,0.00019726,2]
[375236643,1753594242270,-460.0,0.00019726,2]
[375236645,1753594242280,-460.0,0.00019726,2]
[375236647,1753594242289,-460.0,0.00019726,2]
[375236649,1753594242299,-460.0,0.00019726,2]
[375236651,1753594242308,-460.0,0.00019726,2]
[375236653,1753594242317,-2060.53706725,0.00019866,2]
[375236655,1753594242326,-460.0,0.0002,2]
[375236658,1753594242336,-460.0,0.0002,2]
[375236661,1753594242345,-460.0,0.0002,2]
[375236663,1753594242355,-460.0,0.0002,2]
[375236665,1753594242366,-460.0,0.0002,2]
[375236668,1753594242375,-259.46736652,0.0002,2]
[375236670,1753594242385,-2704.54,0.0002,2]
[375236672,1753594242394,-990.02,0.0002,2]
[375236674,1753594242404,-460.0,0.0002,2]
[375236676,1753594242413,-460.0,0.0002,2]
[375236678,1753594242422,-460.0,0.0002,2]
[375236680,1753594242431,-460.0,0.0002,2]
[375236682,1753594242440,-460.0,0.0002,2]
[375236684,1753594242450,-460.0,0.0002,2]
[375236687,1753594242459,-449.35080949,0.0002,2]
[375236690,1753594242468,-936.81,0.0002,2]
[375236693,1753594242478,-298.46705031,0.0002,2]
[375236695,1753594242487,-460.0,0.0002,2]
[375236697,1753594242498,-460.0,0.0002,2]
[375236699,1753594242507,-460.0,0.0002,2]
[375236700,1753594242517,-2794.88,0.0002,2]
[375236702,1753594242529,-460.0,0.0002,2]
[375236704,1753594242538,-501.06,0.0002,2]
[375236706,1753594242548,-460.0,0.0002,2]
[375236709,1753594242558,-1483.75,0.0002,2]
[375236711,1753594242567,-258.42746583,0.0002,2]
[375236713,1753594242577,-460.0,0.0002,2]
[375236716,1753594242586,-460.0,0.0002,2]
[375236718,1753594242595,-460.0,0.0002,2]
[375236720,1753594242606,-460.0,0.0002,2]
[375236722,1753594242615,-1071.68,0.0002,2]
[375236724,1753594242624,-1052.83,0.0002,2]
[375236726,1753594242634,-1095.3,0.0002,2]
[375236728,1753594242643,-460.0,0.0002,2]
[375236730,1753594242652,-460.0,0.0002,2]
[375236732,1753594242662,-460.0,0.0002,2]
[375236734,1753594242672,-1367.69,0.0002,2]
[375236736,1753594242682,-990.08,0.0002,2]
[375236738,1753594242691,-460.0,0.0002,2]
[375236740,1753594242700,-460.0,0.0002,2]
[375236741,1753594242709,-460.0,0.0002,2]
[375236743,1753594242718,-867.34,0.0002,2]
[375236745,1753594242727,-460.0,0.0002,2]
[375236747,1753594242736,-460.0,0.0002,2]
[375236749,1753594242746,-460.0,0.0002,2]
[375236751,1753594242756,-460.0,0.0002,2]
[375236753,1753594242765,-680.18,0.0002,2]
[375236755,1753594242774,-246.13613671,0.0002,7]
[375236757,1753594242784,-460.0,0.0002,2]
[375236759,1753594242794,-460.0,0.0002,2]
[375236761,1753594242804,-460.0,0.0002,2]
[375236763,1753594242814,-460.0,0.0002,2]
[375236765,1753594242824,-460.0,0.0002,2]
[375236767,1753594242833,-460.0,0.0002,2]
[375236769,1753594242844,-460.0,0.0002,2]
[375236771,1753594242857,-460.0,0.0002,2]
[375236773,1753594242868,-460.0,0.0002,2]
[375236775,1753594242878,-460.0,0.0002,2]
[375236777,1753594242889,-460.0,0.0002,2]
[375236779,1753594242898,-460.0,0.0002,2]
[375236781,1753594242907,-710.38,0.0002,2]
[375236783,1753594242917,-460.0,0.0002,2]
[375236785,1753594242928,-460.0,0.0002,2]
[375236787,1753594242938,-909.34,0.0002,2]
[375236789,1753594242947,-988.4,0.0002,2]
[375236791,1753594242957,-277.69514693,0.0002,2]
[375236793,1753594242967,-460.0,0.0002,2]
[375236794,1753594242976,-460.0,0.0002,2]
[375236796,1753594242986,-460.0,0.0002,2]
[375236798,1753594242995,-460.0,0.0002,2]
[375236800,1753594243005,-460.0,0.0002,2]
[375236802,1753594243014,-160.0,0.00020023,2]
[375236804,1753594243023,-500.0,0.00020079,2]
[375236806,1753594243032,-2060.53706725,0.00020107,2]
[375236808,1753594243041,-420.0,0.00020133,2]
[375236810,1753594243051,-1680.0,0.00020135,2]
[375236812,1753594243061,-310.687413,0.00020187,2]
[375236814,1753594243071,-1680.0,0.00020231,2]
[375236816,1753594243080,-460.0,0.00020273,2]
[375236818,1753594243090,-425.71920839,0.00020273,2]
[375236820,1753594243099,-460.0,0.00020273,2]
[375236822,1753594243109,-460.0,0.00020273,2]
[375236824,1753594243118,-460.0,0.00020273,2]
[375236826,1753594243127,-2704.54,0.00020273,2]
[375236828,1753594243137,-990.02,0.00020273,2]
[375236830,1753594243146,-460.0,0.00020273,2]
[375236832,1753594243156,-460.0,0.00020273,2]
[375236834,1753594243167,-460.0,0.00020273,2]
[375236836,1753594243177,-387.39,0.00020273,2]
[375236838,1753594243187,-460.0,0.00020273,2]
[375236840,1753594243195,-936.81,0.00020273,2]
[375236842,1753594243205,-460.0,0.00020273,2]
[375236844,1753594243214,-460.0,0.00020273,2]
[375236846,1753594243224,-460.0,0.00020273,2]
[375236848,1753594243233,-2794.88,0.00020273,2]
[375236850,1753594243242,-460.0,0.00020273,2]
[375236852,1753594243251,-501.06,0.00020273,2]
[375236854,1753594243261,-460.0,0.00020273,2]
[375236856,1753594243270,-1483.75,0.00020273,2]
[375236858,1753594243280,-460.0,0.00020273,2]
[375236860,1753594243289,-460.0,0.00020273,2]
[375236862,1753594243298,-460.0,0.00020273,2]
[375236864,1753594243308,-460.0,0.00020273,2]
[375236866,1753594243317,-1071.68,0.00020273,2]
[375236868,1753594243327,-1052.83,0.00020273,2]
[375236870,1753594243336,-1095.3,0.00020273,2]
[375236872,1753594243345,-460.0,0.00020273,2]
[375236874,1753594243354,-460.0,0.00020273,2]
[375236876,1753594243365,-460.0,0.00020273,2]
[375236878,1753594243375,-1367.69,0.00020273,2]
[375236880,1753594243384,-990.08,0.00020273,2]
[375236882,1753594243394,-460.0,0.00020273,2]
[375236884,1753594243403,-460.0,0.00020273,2]
[375236886,1753594243412,-460.0,0.00020273,2]
[375236888,1753594243422,-867.34,0.00020273,2]
[375236890,1753594243431,-460.0,0.00020273,2]
[375236893,1753594243440,-460.0,0.00020273,2]
[375236896,1753594243450,-460.0,0.00020273,2]
[375236898,1753594243459,-460.0,0.00020273,2]
[375236900,1753594243468,-680.18,0.00020273,2]
[375236902,1753594243477,-466.22,0.00020273,2]
[375236904,1753594243487,-460.0,0.00020273,2]
[375236906,1753594243496,-460.0,0.00020273,2]
[375236908,1753594243505,-460.0,0.00020273,2]
[375236910,1753594243515,-460.0,0.00020273,2]
[375236912,1753594243524,-460.0,0.00020273,2]
[375236914,1753594243534,-460.0,0.00020273,2]
[375236916,1753594243543,-460.0,0.00020273,2]
[375236918,1753594243552,-460.0,0.00020273,2]
[375236920,1753594243563,-460.0,0.00020273,2]
[375236922,1753594243572,-460.0,0.00020273,2]
[375236924,1753594243581,-460.0,0.00020273,2]
[375236926,1753594243591,-710.38,0.00020273,2]
[375236928,1753594243600,-460.0,0.00020273,2]
[375236930,1753594243610,-460.0,0.00020273,2]
[375236932,1753594243621,-909.34,0.00020273,2]
[375236934,1753594243630,-988.4,0.00020273,2]
[375236936,1753594243639,-460.0,0.00020273,2]
[375236938,1753594243650,-460.0,0.00020273,2]
[375236940,1753594243660,-460.0,0.00020273,2]
[375236942,1753594243670,-460.0,0.00020273,2]
[375236943,1753594243679,-460.0,0.00020273,2]
[375236945,1753594243689,-2060.53706725,0.00020348,3]
[375236947,1753594243699,-318.52459815,0.00020506,2]
[375236949,1753594243708,-216.01841554,0.00020534,2]
[375236951,1753594243718,-214.84090509,0.00020534,2]
[375236953,1753594243728,-231.30466539,0.00020534,2]
[375236955,1753594243737,-160.0,0.00020534,2]
[375236957,1753594243747,-160.0,0.00020534,2]
[375236959,1753594243756,-477.07289566,0.00020534,2]
[375236961,1753594243765,-840.75038169,0.00020534,2]
[375236963,1753594243774,-160.0,0.00020534,2]
[375236965,1753594243783,-284.06427839,0.00020547,2]
[375236967,1753594243792,-460.0,0.00020547,2]
[375236969,1753594243801,-460.0,0.00020547,2]
[375236971,1753594243810,-460.0,0.00020547,2]
[375236973,1753594243820,-2704.54,0.00020547,2]
[375236975,1753594243829,-990.02,0.00020547,2]
[375236977,1753594243839,-460.0,0.00020547,2]
[375236979,1753594243848,-460.0,0.00020547,2]
[375236981,1753594243858,-460.0,0.00020547,2]
[375236983,1753594243867,-460.0,0.00020547,2]
[375236985,1753594243876,-936.81,0.00020547,2]
[375236987,1753594243886,-460.0,0.00020547,2]
[375236989,1753594243896,-539.27697015,0.00020547,2]
[375236991,1753594243906,-460.0,0.00020547,2]
[375236992,1753594243915,-2794.88,0.00020547,2]
[375236994,1753594243924,-460.0,0.00020547,2]
[375236996,1753594243934,-501.06,0.00020547,2]
[375236998,1753594243943,-460.0,0.00020547,2]
[375237000,1753594243952,-1483.75,0.00020547,2]
[375237002,1753594243962,-460.0,0.00020547,2]
[375237004,1753594243971,-460.0,0.00020547,2]
[375237006,1753594243980,-460.0,0.00020547,2]
[375237008,1753594243990,-460.0,0.00020547,2]
[375237010,1753594243999,-1071.68,0.00020547,2]
[375237012,1753594244008,-1052.83,0.00020547,2]
[375237014,1753594244017,-1095.3,0.00020547,2]
[375237016,1753594244026,-460.0,0.00020547,2]
[375237018,1753594244035,-460.0,0.00020547,2]
[375237020,1753594244045,-460.0,0.00020547,2]
[375237022,1753594244054,-1367.69,0.00020547,2]
[375237024,1753594244065,-990.08,0.00020547,2]
[375237026,1753594244076,-460.0,0.00020547,2]
[375237028,1753594244085,-460.0,0.00020547,2]
[375237030,1753594244094,-460.0,0.00020547,2]
[375237032,1753594244104,-867.34,0.00020547,2]
[375237034,1753594244115,-460.0,0.00020547,2]
[375237036,1753594244124,-460.0,0.00020547,2]
[375237038,1753594244133,-460.0,0.00020547,2]
[375237040,1753594244144,-460.0,0.00020547,2]
[375237042,1753594244154,-680.18,0.00020547,2]
[375237044,1753594244164,-460.0,0.00020547,2]
[375237046,1753594244177,-460.0,0.00020547,2]
[375237048,1753594244186,-460.0,0.00020547,2]
[375237050,1753594244196,-460.0,0.00020547,2]
[375237052,1753594244207,-460.0,0.00020547,2]
[375237054,1753594244217,-460.0,0.00020547,2]
[375237056,1753594244226,-460.0,0.00020547,2]
[375237058,1753594244235,-460.0,0.00020547,2]
[375237060,1753594244245,-460.0,0.00020547,2]
[375237062,1753594244254,-460.0,0.00020547,2]
[375237064,1753594244265,-460.0,0.00020547,2]
[375237066,1753594244274,-710.38,0.00020547,2]
[375237068,1753594244284,-460.0,0.00020547,2]
[375237070,1753594244293,-460.0,0.00020547,2]
[375237072,1753594244303,-988.4,0.00020547,2]
[375237074,1753594244312,-909.34,0.00020547,2]
[375237076,1753594244322,-460.0,0.00020547,2]
[375237078,1753594244331,-460.0,0.00020547,2]
[375237080,1753594244340,-460.0,0.00020547,2]
[375237082,1753594244350,-460.0,0.00020547,2]
[375237084,1753594244359,-460.0,0.00020547,2]
[375237085,1753594244369,-260.0,0.00020571,2]
[375237087,1753594244378,-150.0,0.00020572,2]
[375237090,1753594244388,-2060.53706725,0.0002059,3]
[375237091,1753594244397,-460.0,0.00020821,2]
[375237093,1753594244409,-460.0,0.00020821,2]
[375237095,1753594244418,-460.0,0.00020821,2]
[375237097,1753594244427,-2704.54,0.00020821,2]
[375237099,1753594244437,-990.02,0.00020821,2]
[375237101,1753594244446,-460.0,0.00020821,2]
[375237103,1753594244456,-460.0,0.00020821,2]
[375237105,1753594244465,-460.0,0.00020821,2]
[375237107,1753594244475,-460.0,0.00020821,2]
[375237109,1753594244484,-936.81,0.00020821,2]
[375237111,1753594244493,-460.0,0.00020821,2]
[375237113,1753594244502,-2794.88,0.00020821,2]
[375237115,1753594244511,-460.0,0.00020821,2]
[375237117,1753594244521,-501.06,0.00020821,2]
[375237119,1753594244530,-1483.75,0.00020821,2]
[375237121,1753594244539,-460.0,0.00020821,2]
[375237123,1753594244549,-460.0,0.00020821,2]
[375237125,1753594244558,-460.0,0.00020821,2]
[375237127,1753594244568,-471.37631574,0.00020821,2]
[375237129,1753594244577,-1071.68,0.00020821,2]
[375237131,1753594244587,-1052.83,0.00020821,2]
[375237133,1753594244597,-1095.3,0.00020821,2]
[375237135,1753594244606,-460.0,0.00020821,2]
[375237137,1753594244616,-460.0,0.00020821,2]
[375237139,1753594244625,-460.0,0.00020821,2]
[375237141,1753594244635,-1367.69,0.00020821,2]
[375237143,1753594244645,-990.08,0.00020821,2]
[375237145,1753594244655,-460.0,0.00020821,2]
[375237147,1753594244664,-460.0,0.00020821,2]
[375237149,1753594244674,-460.0,0.00020821,2]
[375237151,1753594244683,-867.34,0.00020821,2]
[375237153,1753594244693,-460.0,0.00020821,2]
[375237155,1753594244703,-460.0,0.00020821,2]
[375237157,1753594244712,-460.0,0.00020821,2]
[375237159,1753594244722,-680.18,0.00020821,2]
[375237161,1753594244731,-460.0,0.00020821,2]
[375237163,1753594244740,-460.0,0.00020821,2]
[375237165,1753594244749,-281.96961088,0.00020821,2]
[375237167,1753594244759,-460.0,0.00020821,2]
[375237169,1753594244768,-460.0,0.00020821,2]
[375237171,1753594244777,-460.0,0.00020821,2]
[375237173,1753594244786,-460.0,0.00020821,2]
[375237175,1753594244796,-460.0,0.00020821,2]
[375237177,1753594244805,-599.64178083,0.00020821,2]
[375237179,1753594244814,-460.0,0.00020821,2]
[375237181,1753594244823,-460.0,0.00020821,2]
[375237183,1753594244832,-710.38,0.00020821,2]
[375237185,1753594244841,-460.0,0.00020821,2]
[375237187,1753594244850,-460.0,0.00020821,2]
[375237189,1753594244860,-988.4,0.00020821,2]
[375237191,1753594244869,-909.34,0.00020821,2]
[375237192,1753594244879,-460.0,0.00020821,2]
[375237194,1753594244888,-460.0,0.00020821,2]
[375237196,1753594244897,-460.0,0.00020821,2]
[375237198,1753594244906,-460.0,0.00020821,2]
[375237200,1753594244915,-2060.53706725,0.00020831,4]
[375237202,1753594244924,-116009.17608213,0.00021,3]
[375237224,1753594245121,-1325.17447804,0.00021,3]
[375237226,1753594245132,-359.99275684,0.00021,3]
[375237228,1753594245144,-26239.01115827,0.00021,3]
[375237230,1753594245154,-2060.53706725,0.00021072,4]
[375237232,1753594245165,-460.0,0.00021095,2]
[375237234,1753594245182,-378.59037752,0.00021095,2]
[375237236,1753594245191,-460.0,0.00021095,2]
[375237238,1753594245201,-2318.33355728,0.00021095,2]
[375238299,1753594390288,-231.73530386,0.0001836,2]
[375238300,1753594390312,-300.0,0.00018366,2]
[375238301,1753594390347,-300.0,0.00018366,2]
[375238302,1753594390380,-349.25711723,0.00018367,2]
[375238303,1753594390408,-500.0,0.00018367,2]
[375238304,1753594390438,-500.0,0.00018367,2]
[375238305,1753594390467,-500.0,0.00018367,2]
[375238306,1753594390498,-500.0,0.00018367,2]
[375238307,1753594390529,-500.0,0.00018367,2]
[375238308,1753594390558,-500.0,0.00018367,2]
[375238309,1753594390588,-506.11703824,0.00018367,2]
[375238310,1753594390620,-500.0,0.00018367,2]
[375238311,1753594390649,-500.0,0.00018367,2]
[375238312,1753594390676,-500.0,0.00018367,2]
[375238313,1753594390703,-583.1973292,0.00018367,2]
[375238314,1753594390732,-500.0,0.00018367,2]
[375238315,1753594390764,-500.0,0.00018367,2]
[375238316,1753594390794,-500.0,0.00018367,2]
[375238317,1753594390825,-453.01797607,0.00018367,2]
[375238318,1753594390853,-609.55264736,0.00018367,2]
[375238319,1753594390881,-500.0,0.00018367,2]
[375238320,1753594390915,-169.15225757,0.00018367,2]
[375238321,1753594390948,-500.0,0.00018367,2]
[375238322,1753594390976,-500.0,0.00018367,2]
[375238323,1753594391009,-188997.97033047,0.00018368,2]
[375238324,1753594503153,200.0,0.00018,2]
[375238325,1753594526741,196.43303203,0.00017817,2]
[375238326,1753594548575,-197.87053434,0.0001836,2]
[375238327,1753594548596,-300.0,0.00018367,2]
[375238328,1753594548618,-300.0,0.00018367,2]
[375238329,1753594548640,-300.0,0.00018367,2]
[375238330,1753594548661,-300.0,0.00018367,2]
[375238331,1753594548684,-1200.0,0.00018367,2]
[375238332,1753594548706,-7402.12946566,0.00018368,2]
[375238334,1753594691098,455.641317,0.00017799,2]
[375238335,1753594719348,21195.60885291,0.00017799,2]
[375238336,1753594719374,3704.39114709,0.00017799,2]
[375238337,1753594729728,195.10678921,0.00018,2]
[375238338,1753594729752,4804.89321079,0.00018,2]
[375238339,1753594737630,5000.0,0.00018,2]
[375238340,1753594746374,5000.0,0.00018,2]
[375238341,1753594750132,1531.4650646,0.00017941,2]
[375238342,1753594762780,5000.0,0.00018,2]
[375238375,1753595229130,-219.57173524,0.00018266,2]
[375238376,1753595229151,-511.44,0.00018358,3]
[375238377,1753595229171,-1200.0,0.00018365,2]
[375238378,1753595229191,-146.60724869,0.00018365,2]
[375238379,1753595252307,-153.39275131,0.00018365,2]
[375238380,1753595252329,-300.0,0.00018366,2]
[375238381,1753595252351,-300.0,0.00018366,2]
[375238382,1753595252371,-300.0,0.00018366,2]
[375238383,1753595252392,-300.0,0.00018366,2]
[375238384,1753595252414,-1200.0,0.00018366,2]
[375238385,1753595252436,-4446.60724869,0.00018368,2]
[375238388,1753595415302,150.0,0.00015146,30]
[375238389,1753595415721,150.0,0.00015867,30]
[375238446,1753595432417,-242.0,0.00018367,2]
[375238447,1753595432427,-229.0,0.00018367,2]
[375238448,1753595432436,-300.0,0.00018367,2]
[375238449,1753595432445,-1200.0,0.00018367,2]
[375238450,1753595432455,-240.0,0.00018367,2]
[375238451,1753595432464,-2413.983028,0.00018368,2]
[375238470,1753595438053,-485.15639243,0.00018368,2]
[375238471,1753595438187,-166254.15353475,0.00018368,2]
[375238472,1753595438197,-500.0,0.00018373,2]
[375238473,1753595438207,-500.0,0.00018373,2]
[375238474,1753595438216,-500.0,0.00018373,2]
[375238475,1753595438226,-500.0,0.00018373,2]
[375238476,1753595438236,-162.18852461,0.00018373,2]
[375238477,1753595438245,-387.02101568,0.00018373,2]
[375238478,1753595438255,-451.50060585,0.000189,2]
[375238479,1753595438264,-1000.0,0.00018921,2]
[375238480,1753595438274,-1069.04364662,0.00019,2]
[375238481,1753595438284,-2526.18618762,0.00019068,2]
[375238482,1753595438293,-500.0,0.00019073,2]
[375238483,1753595438303,-261.79551363,0.00019073,2]
[375238484,1753595438313,-155.10543121,0.00019073,2]
[375238485,1753595438322,-500.0,0.00019073,2]
[375238486,1753595438332,-500.0,0.00019073,2]
[375238487,1753595438342,-500.0,0.00019073,2]
[375238488,1753595438351,-500.0,0.00019073,2]
[375238489,1753595438360,-500.0,0.00019073,2]
[375238490,1753595438370,-244.47998206,0.00019099,2]
[375238491,1753595438379,-500.0,0.00019099,2]
[375238492,1753595438389,-500.0,0.00019099,2]
[375238493,1753595438399,-500.0,0.00019099,2]
[375238494,1753595438409,-500.0,0.00019099,2]
[375238495,1753595438418,-454.28192676,0.00019099,2]
[375238496,1753595438428,-123052.14512,0.000191,3]
[375238497,1753595438437,-477.07289566,0.000191,3]
[375238498,1753595438446,-12632.25855046,0.000191,3]
[375238499,1753595438457,-150.0,0.00019138,2]
[375238500,1753595438466,-500.0,0.00019173,2]
[375238501,1753595438476,-473.35066136,0.00019173,2]
[375238502,1753595438485,-500.20973948,0.00019173,2]
[375238503,1753595438494,-500.0,0.00019173,2]
[375238504,1753595438503,-500.0,0.00019173,2]
[375238505,1753595438511,-500.0,0.00019173,2]
[375238506,1753595438520,-500.39413732,0.00019173,2]
[375238507,1753595438529,-504.73741654,0.00019173,2]
[375238508,1753595438538,-500.0,0.00019173,2]
[375238509,1753595438548,-501.79535777,0.00019173,2]
[375238510,1753595438557,-577.89883899,0.00019173,2]
[375238511,1753595438566,-500.0,0.00019173,2]
[375238512,1753595438575,-500.0,0.00019173,2]
[375238513,1753595438584,-500.0,0.00019173,2]
[375238514,1753595438593,-500.0,0.00019173,2]
[375238515,1753595438602,-500.0,0.00019173,2]
[375238516,1753595438611,-500.0,0.00019173,2]
[375238517,1753595438620,-460.0,0.00019178,2]
[375238518,1753595438629,-461.49150646,0.00019178,2]
[375238519,1753595438639,-465.99757499,0.00019178,2]
[375238520,1753595438648,-460.0,0.00019178,2]
[375238521,1753595438657,-460.0,0.00019178,2]
[375238522,1753595438666,-460.0,0.00019178,2]
[375238523,1753595438675,-460.0,0.00019178,2]
[375238524,1753595438684,-460.0,0.00019178,2]
[375238525,1753595438694,-460.0,0.00019178,2]
[375238526,1753595438703,-464.27507111,0.00019178,2]
[375238527,1753595438713,-460.0,0.00019178,2]
[375238528,1753595438722,-584.72174384,0.00019178,2]
[375238529,1753595438731,-460.0,0.00019178,2]
[375238530,1753595438740,-460.0,0.00019178,2]
[375238531,1753595438750,-460.0,0.00019178,2]
[375238532,1753595438759,-467.65092138,0.00019178,2]
[375238533,1753595438768,-460.0,0.00019178,2]
[375238534,1753595438778,-460.0,0.00019178,2]
[375238535,1753595438786,-460.0,0.00019178,2]
[375238536,1753595438796,-460.0,0.00019178,2]
[375238537,1753595438806,-460.0,0.00019178,2]
[375238538,1753595438818,-460.0,0.00019178,2]
[375238539,1753595438827,-460.0,0.00019178,2]
[375238540,1753595438837,-460.0,0.00019178,2]
[375238541,1753595438847,-460.0,0.00019178,2]
[375238542,1753595438856,-460.0,0.00019178,2]
[375238543,1753595438865,-460.0,0.00019178,2]
[375238544,1753595438875,-467.47245384,0.00019178,2]
[375238545,1753595438884,-460.0,0.00019178,2]
[375238546,1753595438893,-460.0,0.00019178,2]
[375238547,1753595438903,-473.61706397,0.00019178,2]
[375238548,1753595438912,-460.0,0.00019178,2]
[375238549,1753595438921,-460.0,0.00019178,2]
[375238550,1753595438931,-473.32582065,0.00019178,2]
[375238551,1753595438940,-460.0,0.00019178,2]
[375238552,1753595438949,-460.0,0.00019178,2]
[375238553,1753595438958,-460.0,0.00019178,2]
[375238554,1753595438967,-468.06762894,0.00019178,2]
[375238555,1753595438977,-460.0,0.00019178,2]
[375238556,1753595438987,-460.0,0.00019178,2]
[375238557,1753595438995,-460.0,0.00019178,2]
[375238558,1753595439005,-500.0,0.00019178,2]
[375238559,1753595439014,-460.0,0.00019178,2]
[375238560,1753595439023,-460.0,0.00019178,2]
[375238561,1753595439033,-460.0,0.00019178,2]
[375238562,1753595439042,-460.0,0.00019178,2]
[375238563,1753595439052,-460.0,0.00019178,2]
[375238564,1753595439061,-460.0,0.00019178,2]
[375238565,1753595439072,-460.0,0.00019178,2]
[375238566,1753595439081,-460.0,0.00019178,2]
[375238567,1753595439091,-3978.79,0.00019178,2]
[375238568,1753595439101,-460.0,0.00019178,2]
[375238569,1753595439229,-437.46997992,0.00019178,2]
[375238570,1753595439239,-460.0,0.00019178,2]
[375238571,1753595439249,-460.0,0.00019178,2]
[375238572,1753595439258,-460.0,0.00019178,2]
[375238573,1753595439267,-460.0,0.00019178,2]
[375238574,1753595439277,-460.0,0.00019178,2]
[375238575,1753595439286,-460.0,0.00019178,2]
[375238576,1753595439295,-460.0,0.00019178,2]
[375238577,1753595439304,-460.0,0.00019178,2]
[375238578,1753595439313,-460.0,0.00019178,2]
[375238579,1753595439322,-460.0,0.00019178,2]
[375238580,1753595439331,-460.0,0.00019178,2]
[375238581,1753595439340,-460.0,0.00019178,2]
[375238582,1753595439349,-460.0,0.00019178,2]
[375238583,1753595439358,-460.0,0.00019178,2]
[375238584,1753595439367,-460.0,0.00019178,2]
[375238585,1753595439377,-460.0,0.00019178,2]
[375238586,1753595439386,-460.0,0.00019178,2]
[375238587,1753595439395,-460.0,0.00019178,2]
[375238588,1753595439404,-460.0,0.00019178,2]